[Event "Nordic Youth-ch A 2019"]
[Site "Borgarnes"]
[Date "2019.02.17"]
[Round "5.18"]
[White "Koota, Ilkka"]
[Black "Knudsen, Philip Uhre"]
[Result "1-0"]
[ECO "C42"]
[WhiteElo "1514"]
[BlackElo "1394"]
[Annotator "NA"]
[PlyCount "85"]
[EventDate "2019.02.03"]
[EventType "swiss"]
[EventCountry "ISL"]
[SourceTitle "playchess.com"]
[Source "ChessBase"]
[SourceQuality "1"]
[TimeControl "5400+30"]

1. e4 {[%emt 0:00:00]} e5 {[%emt 0:00:00]} 2. Nf3 {[%emt 0:00:00]} Nf6 {[%emt 0:00:00]} 3. Nxe5 {[%emt 0:00:00]} Nc6 {[%emt 0:00:00]} 4. Nxc6 {[%emt 0:00:24]} dxc6 {[%emt 0:00:00]} 5. Nc3 {[%emt 0:00:39]} Bc5 {[%emt 0:00:02]} 6. h3 {[%emt 0:02:35]} O-O {[%emt 0:01:18]} 7. d3 {[%emt 0:00:39]} Re8 {[%emt 0:01:30]} 8. Be2 {[%emt 0:00:20]} b5 {[%emt 0:01:14]} 9. a3 {[%emt 0:00:28]} a5 {[%emt 0:00:13]} 10. O-O {[%emt 0:00:14]} Bb7 {[%emt 0:00:53]} 11. Qe1 {[%emt 0:05:36]} Nd7 {[%emt 0:04:08]} 12. Kh1 {[%emt 0:03:25]} Bb6 {[%emt 0:01:58]} 13. f4 {[%emt 0:00:39]} b4 {[%emt 0:02:20]} 14. Nd1 {[%emt 0:00:26]} c5 {[%emt 0:01:27]} 15. Ne3 {[%emt 0:00:31]} Nf8 {[%emt 0:02:17]} 16. Qg3 {[%emt 0:00:39]} Ne6 {[%emt 0:02:07]} 17. f5 {[%emt 0:00:46]} Nd4 {[%emt 0:00:34]} 18. f6 {[%emt 0:01:35]} g6 {[%emt 0:01:27]} 19. Bd1 {[%emt 0:03:13]} Re6 {[%emt 0:02:37]} 20. e5 {[%emt 0:04:08]} Nc6 {[%emt 0:03:20]} 21. Nc4 {[%emt 0:00:52]} Qf8 {[%emt 0:04:34]} 22. Bf4 {[%emt 0:00:28]} Nd4 {[%emt 0:01:01]} 23. Bg4 {[%emt 0:07:55]} Ree8 {[%emt 0:00:31]} 24. c3 {[%emt 0:00:39]} Ne6 {[%emt 0:03:16]} 25. Be3 {[%emt 0:03:58]} bxa3 {[%emt 0:05:29]} 26. bxa3 {[%emt 0:00:25]} Bc8 {[%emt 0:00:51]} 27. Rab1 {[%emt 0:01:26]} Ra6 {[%emt 0:00:33]} 28. Rxb6 Rxb6 29. Nxb6 {[%emt 0:04:24]} cxb6 {[%emt 0:02:17]} 30. Rb1 {[%emt 0:00:50]} Rd8 {[%emt 0:00:47]} 31. Bd2 Ba6 {[%emt 0:01:44]} 32. Bxe6 {[%emt 0:05:54]} Bxd3 33. Bxf7+ {[%emt 0:03:25]} Qxf7 {[%emt 0:01:19]} 34. Rxb6 {[%emt 0:01:28]} Bf5 35. Bg5 Re8 {[%emt 0:04:39]} 36. Qe3 {[%emt 0:06:13]} Qd5 {[%emt 0:03:28]} 37. f7+ {[%emt 0:04:03]} Kxf7 {[%emt 0:06:42]} 38. Bf6 Re6 39. Qh6 {[%emt 0:01:23]} Qd1+ {[%emt 0:02:03]} 40. Kh2 {[%emt 0:00:13]} Rxb6 {[%emt 0:00:27]} 41. Qg7+ {[%emt 0:00:05]} Ke6 {[%emt 0:00:09]} 42. Qe7+ {[%emt 0:00:04]} Kd5 {[%emt 0:00:36]} 43. Qd8+ {[%emt 0:00:06]} 1-0

[Event "Nordic Youth-ch A 2019"]
[Site "Borgarnes"]
[Date "2019.02.17"]
[Round "5.19"]
[White "Moller, Tomas"]
[Black "Jaakkola, Niklas"]
[Result "0-1"]
[ECO "B32"]
[WhiteElo "1226"]
[BlackElo "1635"]
[Annotator "NA"]
[PlyCount "60"]
[EventDate "2019.02.03"]
[EventType "swiss"]
[EventCountry "ISL"]
[SourceTitle "playchess.com"]
[Source "ChessBase"]
[SourceQuality "1"]
[TimeControl "5400+30"]

1. e4 {[%emt 0:00:00]} c5 {[%emt 0:00:00]} 2. Nf3 {[%emt 0:00:00]} Nc6 {[%emt 0:00:00]} 3. d4 {[%emt 0:00:00]} cxd4 {[%emt 0:00:00]} 4. Nxd4 {[%emt 0:00:15]} e5 {[%emt 0:00:00]} 5. Nb3 {[%emt 0:00:44]} d6 {[%emt 0:06:19]} 6. Nc3 {[%emt 0:02:12]} Be7 {[%emt 0:08:41]} 7. Bc4 {[%emt 0:04:42]} Nf6 {[%emt 0:02:37]} 8. f3 {[%emt 0:02:58]} Be6 {[%emt 0:03:25]} 9. Nd5 {[%emt 0:05:11]} O-O {[%emt 0:12:58]} 10. Be3 {[%emt 0:01:23]} Bxd5 {[%emt 0:02:02]} 11. Bxd5 {[%emt 0:04:30]} Nxd5 {[%emt 0:00:58]} 12. Qxd5 {[%emt 0:02:40]} Rc8 {[%emt 0:12:03]} 13. c3 {[%emt 0:03:54]} Bg5 {[%emt 0:01:59]} 14. Qd2 {[%emt 0:03:51]} Bxe3 {[%emt 0:01:54]} 15. Qxe3 {[%emt 0:00:08]} Qc7 {[%emt 0:03:22]} 16. O-O {[%emt 0:06:34]} a6 {[%emt 0:04:47]} 17. a4 {[%emt 0:02:55]} Ne7 {[%emt 0:04:16]} 18. Kh1 {[%emt 0:02:41]} d5 {[%emt 0:06:31]} 19. Rfe1 {[%emt 0:05:04]} Rfe8 {[%emt 0:03:15]} 20. exd5 {[%emt 0:04:08]} Nxd5 {[%emt 0:00:06]} 21. Qe4 {[%emt 0:01:53]} Nf6 {[%emt 0:02:27]} 22. Qe3 {[%emt 0:02:47]} e4 {[%emt 0:03:19]} 23. fxe4 {[%emt 0:00:51]} Rxe4 {[%emt 0:01:57]} 24. Qg3 {[%emt 0:12:39]} Qxg3 {[%emt 0:00:54]} 25. hxg3 {[%emt 0:00:08]} Kf8 {[%emt 0:01:07]} 26. Nd4 {[%emt 0:02:38]} g6 {[%emt 0:01:15]} 27. Kg1 {[%emt 0:02:21]} Rce8 {[%emt 0:01:30]} 28. Kf1 {[%emt 0:02:34]} Nh5 {[%emt 0:01:37]} 29. Ne2 {[%emt 0:01:24]} Rxe2 {[%emt 0:00:09]} 30. Rxe2 {[%emt 0:00:13]} Nxg3+ {[%emt 0:00:05]} 0-1

[Event "Nordic Youth-ch A 2019"]
[Site "Borgarnes"]
[Date "2019.02.17"]
[Round "5.20"]
[White "Smarason, Kristjan Ingi"]
[Black "Olsen, William Alexander"]
[Result "0-1"]
[ECO "E20"]
[WhiteElo "1422"]
[BlackElo "1646"]
[Annotator "NA"]
[PlyCount "60"]
[EventDate "2019.02.03"]
[EventType "swiss"]
[EventCountry "ISL"]
[SourceTitle "playchess.com"]
[Source "ChessBase"]
[SourceQuality "1"]
[TimeControl "5400+30"]

1. d4 {[%emt 0:00:00]} Nf6 {[%emt 0:00:00]} 2. c4 {[%emt 0:00:00]} e6 {[%emt 0:00:00]} 3. Nc3 {[%emt 0:00:00]} Bb4 {[%emt 0:00:00]} 4. Bd2 {[%emt 0:00:13]} d5 {[%emt 0:00:16]} 5. e3 {[%emt 0:00:29]} O-O {[%emt 0:00:16]} 6. Nf3 {[%emt 0:00:26]} b6 {[%emt 0:01:47]} 7. cxd5 {[%emt 0:00:22]} exd5 {[%emt 0:00:00]} 8. Bd3 {[%emt 0:01:20]} Re8 {[%emt 0:01:42]} 9. O-O {[%emt 0:01:32]} Bg4 {[%emt 0:06:24]} 10. h3 {[%emt 0:04:59]} Bh5 {[%emt 0:00:16]} 11. a3 {[%emt 0:01:49]} Bf8 {[%emt 0:02:41]} 12. Re1 {[%emt 0:03:57]} Bg6 {[%emt 0:03:52]} 13. Qc2 {[%emt 0:03:39]} c5 {[%emt 0:04:26]} 14. Bxg6 {[%emt 0:05:32]} hxg6 {[%emt 0:00:20]} 15. e4 {[%emt 0:01:53]} dxe4 {[%emt 0:11:41]} 16. Nxe4 {[%emt 0:03:46]} Nbd7 {[%emt 0:02:34]} 17. Nxf6+ {[%emt 0:05:01]} Qxf6 {[%emt 0:01:26]} 18. d5 {[%emt 0:03:47]} Qd6 {[%emt 0:09:22]} 19. Qd3 {[%emt 0:08:32]} Nf6 {[%emt 0:02:36]} 20. Rad1 {[%emt 0:05:40]} Qxd5 {[%emt 0:06:47]} 21. Qc2 {[%emt 0:02:30]} Qc6 {[%emt 0:06:29]} 22. Qb3 {[%emt 0:03:19]} Ne4 {[%emt 0:07:18]} 23. Qc2 {[%emt 0:04:04]} Bd6 {[%emt 0:04:07]} 24. Nd4 {[%emt 0:03:56]} Qb7 {[%emt 0:00:52]} 25. Nb5 {[%emt 0:04:50]} Rad8 26. Nxa7 {[%emt 0:03:23]} Nxd2 {[%emt 0:05:14]} 27. Rxe8+ {[%emt 0:00:29]} Rxe8 {[%emt 0:00:14]} 28. Qxd2 {[%emt 0:00:43]} Rd8 {[%emt 0:01:18]} 29. Qe2 {[%emt 0:09:14]} Qxa7 {[%emt 0:01:19]} 30. Rd3 {[%emt 0:03:12]} Qa6 {[%emt 0:01:51]} 0-1

[Event "Nordic Youth-ch A 2019"]
[Site "Borgarnes"]
[Date "2019.02.17"]
[Round "6.2"]
[White "Kristensen, Bjarke Hautop"]
[Black "Crevatin, Leo"]
[Result "0-1"]
[ECO "A06"]
[WhiteElo "2212"]
[BlackElo "2190"]
[Annotator "NA"]
[PlyCount "86"]
[EventDate "2019.02.03"]
[EventType "swiss"]
[EventCountry "ISL"]
[SourceTitle "playchess.com"]
[Source "ChessBase"]
[SourceQuality "1"]
[TimeControl "5400+30"]

1. Nf3 {[%emt 0:00:00]} d5 2. e3 {[%emt 0:00:00]} Nf6 {[%emt 0:00:20]} 3. c4 {[%emt 0:00:00]} c6 {[%emt 0:00:11]} 4. Nc3 e6 5. b3 {[%emt 0:00:00]} Bd6 {[%emt 0:00:07]} 6. Bb2 {[%emt 0:00:00]} O-O {[%emt 0:00:00]} 7. Qc2 {A11: English Opening: 1...c6} e5 {[%emt 0:00:00]} 8. cxd5 {[%emt 0:00:33]} cxd5 {[%emt 0:00:03]} 9. Nb5 {[%emt 0:00:16]} Nc6 {[%emt 0:00:02]} 10. Nxd6 {[%emt 0:00:56]} Qxd6 11. d4 {[%emt 0:03:05]} e4 {[%emt 0:00:55]} 12. Ne5 {[%emt 0:00:30]} Nb4 {[%emt 0:00:42]} 13. Qd2 {[%emt 0:00:03]} Ne8 {[%emt 0:03:17] [#]} 14. f3 $146 {[%emt 0:03:33]} ({Predecessor:} 14. h3 f6 {1-0 (37) Ivanchuk,V (2713)-Pijpers,A (2453) Batumi 2018}) 14... f6 {[%emt 0:06:19]} 15. fxe4 fxe5 {[%emt 0:00:30]} 16. dxe5 {[%emt 0:00:41]} Qe7 {[%emt 0:04:19]} 17. exd5 {[%emt 0:02:35]} Qh4+ {[%emt 0:06:38]} 18. Kd1 {[%emt 0:07:30]} Rf2 {[%emt 0:08:20]} 19. Be2 {[%emt 0:02:09]} Bg4 {[%emt 0:02:44]} 20. Re1 {[%emt 0:01:08]} Bxe2+ {[%emt 0:00:11]} 21. Rxe2 {[%emt 0:00:03]} Rf1+ {[%emt 0:00:13]} 22. Re1 {[%emt 0:00:03]} Rxe1+ {[%emt 0:00:18]} 23. Qxe1 {[%emt 0:00:03]} Qxe1+ {[%emt 0:00:08]} 24. Kxe1 {[%emt 0:00:11]} Nc2+ {[%emt 0:00:18]} 25. Kd2 {[%emt 0:00:21]} Nxa1 {[%emt 0:00:03]} 26. Bxa1 {[%emt 0:00:04]} Nc7 {[%emt 0:00:50]} 27. e4 {[%emt 0:00:06]} Rd8 {[%emt 0:03:34]} 28. Kd3 {[%emt 0:01:15]} Nxd5 {[%emt 0:00:07]} 29. exd5 {[%emt 0:00:03]} Rxd5+ {[%emt 0:00:05]} 30. Bd4 {[%emt 0:00:06]} Kf7 {[%emt 0:00:39]} 31. Ke4 {[%emt 0:03:08]} Ke6 {[%emt 0:00:01]} 32. a4 {[%emt 0:00:06]} a6 {[%emt 0:03:04]} 33. b4 {[%emt 0:00:18]} b5 {[%emt 0:01:41]} 34. a5 {[%emt 0:02:20]} Rd7 {[%emt 0:01:41]} 35. g4 {[%emt 0:04:04]} Rf7 {[%emt 0:00:32]} 36. Bc5 {[%emt 0:01:12]} Rf1 {[%emt 0:01:44]} 37. Bd6 {[%emt 0:00:04]} g5 {[%emt 0:03:38]} 38. Kd4 {[%emt 0:06:25]} Rc1 {[%emt 0:00:12]} 39. h3 {[%emt 0:00:04]} Rc4+ {[%emt 0:00:31]} 40. Kd3 {[%emt 0:00:05]} Kd5 {[%emt 0:00:22]} 41. Kd2 {[%emt 0:00:18]} Re4 {[%emt 0:01:55]} 42. Kd3 {[%emt 0:00:45]} Re1 $19 {[%emt 0:00:15]} 43. Kd2 {[%emt 0:01:07]} Rh1 {[%emt 0:00:09]} 0-1

[Event "Nordic Youth-ch A 2019"]
[Site "Borgarnes"]
[Date "2019.02.17"]
[Round "6.3"]
[White "Skaale, Janus"]
[Black "Nazarova, Anastasia"]
[Result "0-1"]
[ECO "B34"]
[WhiteElo "1765"]
[BlackElo "2176"]
[Annotator "NA"]
[PlyCount "152"]
[EventDate "2019.02.03"]
[EventType "swiss"]
[EventCountry "ISL"]
[SourceTitle "playchess.com"]
[Source "ChessBase"]
[SourceQuality "1"]
[TimeControl "5400+30"]

1. e4 {[%emt 0:00:00]} c5 {[%emt 0:00:00]} 2. Nf3 {[%emt 0:00:00]} Nc6 {[%emt 0:00:00]} 3. d4 {[%emt 0:00:01]} cxd4 {[%emt 0:00:00]} 4. Nxd4 {[%emt 0:00:27]} g6 {[%emt 0:00:00]} 5. Nc3 {[%emt 0:00:24]} Bg7 {[%emt 0:00:00]} 6. Be3 {[%emt 0:01:09]} Nf6 {[%emt 0:00:00]} 7. Nxc6 {[%emt 0:00:21]} bxc6 {[%emt 0:00:00]} 8. e5 {[%emt 0:00:28]} Ng8 {[%emt 0:00:00]} 9. Bd4 {[%emt 0:07:29]} Qa5 {[%emt 0:00:49]} 10. f4 {[%emt 0:06:04]} f6 11. Qd2 fxe5 {[%emt 0:08:30] B34: Sicilian: Accelerated Dragon with 5 Nc3: sidelines} 12. fxe5 {[%emt 0:00:52]} c5 {[%emt 0:02:02]} 13. Be3 {[%emt 0:02:29]} Bxe5 {[%emt 0:16:04]} 14. Bc4 {[%emt 0:02:39] [#]} e6 $2 $146 {[%emt 0:10:39]} ({Predecessor:} 14... Nf6 $11 15. O-O Rb8 (15... Ba6 16. Bxa6 Qxa6 17. Bxc5 d6 18. Rae1 O-O 19. Bd4 Bxd4+ 20. Qxd4 {½-½ (36) Kasparov,G (2838)-Ivanchuk,V (2711) Prague 2002})) 15. O-O {[%emt 0:04:34]} Ne7 {[%emt 0:01:36]} 16. Qf2 {[%emt 0:03:38]} Nf5 {[%emt 0:06:20]} 17. Bxc5 {[%emt 0:01:24]} Bb7 {[%emt 0:02:01]} 18. Nb5 {[%emt 0:05:56]} a6 {[%emt 0:18:02] [#]} 19. Bd4 $2 {[%emt 0:07:48]} (19. b4 $1 $16 {[%cal Rb4a5] keeps the pressure on.} Qd8 20. Nd4) 19... Bxd4 {[%emt 0:14:03]} 20. Nxd4 {[%emt 0:00:47]} O-O {[%emt 0:00:26]} 21. Nf3 {[%emt 0:12:04]} (21. Nxf5 $11 Rxf5 22. Qd4) 21... Bxf3 {[%emt 0:01:09]} 22. gxf3 {[%emt 0:01:41]} Qb4 {[%emt 0:03:10]} 23. Bb3 {[%emt 0:00:55]} (23. b3 $15) 23... Qf4 {[%emt 0:02:29]} ({Black should try} 23... Nh4 24. f4 {[#]} g5 $1 {[%mdl 512]}) 24. Rae1 {[%emt 0:04:27]} Nh4 {[%emt 0:06:05]} 25. Re3 {[%emt 0:01:09]} Rf5 {[%emt 0:00:06]} 26. Kh1 {[%emt 0:03:54]} Raf8 {[%emt 0:00:15]} 27. Qe2 {[%emt 0:02:06]} (27. c3 $17) 27... g5 {[%emt 0:03:33]} (27... Rh5 $19 28. Re4 Qc7) 28. Re4 $2 {[%emt 0:04:22]} (28. Bc4 $17) 28... Qc7 {[%emt 0:01:01]} 29. Qc4 $2 {[%emt 0:02:43]} (29. Rxh4 gxh4 30. Bc4) 29... Rc5 {[%emt 0:02:28]} (29... Qb7 $142 30. Qb4 Qa8 31. Rxe6 dxe6 32. Bxe6+ Kg7 33. Bxf5 Rxf5 34. Qe7+ Kh8) 30. Qd3 {[%emt 0:05:28]} Rcf5 {[%emt 0:00:57]} (30... Rf7 $17 31. c3 Rcf5) 31. Qc4 {[%emt 0:01:31]} Qb6 {[%emt 0:01:00]} 32. Qd4 {[%emt 0:02:21] [#]} Qxd4 {[%emt 0:02:07]} (32... Qb7 $1 $19 {and Black stays clearly on top.} 33. Rxh4 Rxf3) 33. Rxd4 {[%emt 0:00:02]} Rxf3 {[%emt 0:00:15]} 34. Rxf3 {[%emt 0:00:11]} (34. Rg1 $15 Kh8 35. Rxd7) 34... Rxf3 {[%emt 0:00:09]} ({Stronger than} 34... Nxf3 35. Rxd7 Rf6 36. h3 $14) 35. Kg1 {[%emt 0:00:16]} Rxb3 {[%emt 0:00:18]} 36. Rxh4 {[%emt 0:00:28]} Rxb2 {[%emt 0:00:04]} 37. Ra4 {[%emt 0:00:19]} Rxc2 {[%emt 0:00:17]} 38. Rxa6 {[%emt 0:00:05]} Kf7 {[%emt 0:01:47]} 39. a4 {[%emt 0:00:44]} Ra2 {[%emt 0:00:08]} 40. a5 {[%emt 0:00:05]} d5 {[%emt 0:00:10]} 41. Ra8 {[%emt 0:00:12]} e5 {[%emt 0:00:42]} 42. a6 {[%emt 0:00:04]} Kg7 {[%emt 0:01:20]} 43. a7 {[%emt 0:00:08]} d4 {[%emt 0:00:31]} 44. Re8 {[%emt 0:00:18]} Rxa7 {[%emt 0:00:04]} 45. Rxe5 {[%emt 0:00:15]} Kf6 $19 {[%emt 0:01:12]} 46. Rd5 {[%emt 0:00:09]} Ra1+ {[%emt 0:00:07]} 47. Kf2 {[%emt 0:00:18]} Ra2+ {[%emt 0:00:17]} 48. Kg1 {[%emt 0:02:00]} Rd2 {[%emt 0:00:15]} 49. h3 {[%emt 0:00:06]} Kg6 {[%emt 0:01:00]} 50. Rd7 {[%emt 0:01:10]} h6 {[%emt 0:00:23]} 51. Rd6+ {[%emt 0:00:18]} Kh5 {[%emt 0:00:19]} 52. Kh1 {[%emt 0:00:15]} Kh4 {[%emt 0:00:22]} 53. Kg1 {[%emt 0:00:52]} Kg3 {[%emt 0:00:38]} 54. Kf1 {[%emt 0:00:07]} h5 {[%emt 0:01:13]} 55. Rd5 {[%emt 0:00:55]} Kh4 {[%emt 0:00:27]} 56. Ke1 {[%emt 0:01:51]} Rd3 {[%emt 0:00:04]} 57. Ke2 {[%emt 0:00:16]} Rxh3 {[%emt 0:00:09]} 58. Rxd4+ {[%emt 0:00:08]} g4 {[%emt 0:00:04]} 59. Kf2 {[%emt 0:00:15]} Rh2+ {[%emt 0:00:19]} 60. Kg1 {[%emt 0:00:16]} Re2 {[%emt 0:01:09]} 61. Rd5 {[%emt 0:01:24]} Kg3 {[%emt 0:00:36]} 62. Kf1 {[%emt 0:00:03]} Rf2+ {[%emt 0:00:11]} 63. Kg1 {[%emt 0:00:23]} h4 {[%emt 0:00:27]} 64. Rd3+ {[%emt 0:00:10]} Rf3 {[%emt 0:00:04]} 65. Rd2 {[%emt 0:00:11]} Ra3 {[%emt 0:01:05]} 66. Rg2+ {[%emt 0:00:23]} Kf4 {[%emt 0:00:06]} 67. Rf2+ {[%emt 0:00:05]} Rf3 {[%emt 0:00:16]} 68. Rb2 {[%emt 0:00:56]} g3 {[%emt 0:00:40]} 69. Rb4+ {[%emt 0:00:14]} Kg5 {[%emt 0:00:03]} 70. Rb5+ {[%emt 0:00:13]} Kg4 {[%emt 0:00:23]} 71. Rb4+ {[%emt 0:00:04]} Rf4 {[%emt 0:00:12]} 72. Rb2 {[%emt 0:00:16]} h3 {[%emt 0:02:08]} 73. Rb1 {[%emt 0:00:32]} h2+ {[%emt 0:00:28]} 74. Kg2 {[%emt 0:00:09]} Rf2+ {[%emt 0:00:09]} 75. Kh1 {[%emt 0:00:10]} Kh3 {[%emt 0:00:09]} 76. Rb3 {[%emt 0:00:17]} Rf1# {[%emt 0:00:06]} 0-1

[Event "Nordic Youth-ch A 2019"]
[Site "Borgarnes"]
[Date "2019.02.17"]
[Round "6.5"]
[White "Briem, Stephan"]
[Black "Carlsson, Ludvig"]
[Result "1-0"]
[ECO "D10"]
[WhiteElo "1987"]
[BlackElo "2217"]
[Annotator "ChessBase"]
[PlyCount "135"]
[EventDate "2019.02.03"]
[EventType "swiss"]
[EventCountry "ISL"]
[SourceTitle "playchess.com"]
[Source "ChessBase"]
[SourceQuality "1"]
[TimeControl "5400+30"]

1. d4 {[%emt 0:00:00]} d5 {[%emt 0:00:00]} 2. c4 {[%emt 0:00:08]} c6 {[%emt 0:00:00]} 3. Nc3 {[%emt 0:00:33]} Nf6 {[%emt 0:00:00]} 4. cxd5 {[%emt 0:00:25]} cxd5 {[%emt 0:00:41]} 5. f3 {[%emt 0:00:18]} Nc6 6. e4 {[%emt 0:00:12]} dxe4 {[%emt 0:00:36]} 7. d5 {[%emt 0:00:36]} Ne5 {[%emt 0:00:29]} 8. fxe4 {[%emt 0:00:58]} e6 9. Nf3 Nxf3+ {[%emt 0:02:50]} 10. Qxf3 {[%emt 0:01:42]} exd5 {[%emt 0:01:28]} 11. e5 Nd7 {[%emt 0:11:33]} 12. Qxd5 {[%emt 0:07:50]} Bb4 {[%emt 0:14:24]} 13. Bc4 {[%emt 0:08:48]} Qe7 {[%emt 0:02:11]} 14. O-O {[%emt 0:13:06]} O-O {[%emt 0:03:47]} 15. Bg5 {[%emt 0:17:55]} Qc5+ {[%emt 0:03:06]} 16. Kh1 {[%emt 0:00:34]} Nxe5 {[%emt 0:01:14]} 17. Qxc5 {[%emt 0:06:22]} Bxc5 {[%emt 0:00:09]} 18. Be2 {[%emt 0:09:07]} Bg4 {[%emt 0:07:23]} 19. Rae1 {[%emt 0:01:17]} Rfe8 {[%emt 0:01:19]} 20. Bb5 {[%emt 0:03:27]} Bd7 {[%emt 0:04:36]} 21. Bxd7 {[%emt 0:04:44]} Nxd7 {[%emt 0:00:08]} 22. Rd1 {[%emt 0:00:52]} Ne5 {[%emt 0:01:28]} 23. Rd5 {[%emt 0:02:31]} Bb6 {[%emt 0:01:40]} 24. Na4 {[%emt 0:02:18]} f6 {[%emt 0:00:37]} 25. Bf4 {[%emt 0:03:02]} Red8 {[%emt 0:09:35]} 26. Rb5 {[%emt 0:05:34]} Nd3 {[%emt 0:00:54]} 27. Nxb6 {[%emt 0:00:29]} axb6 {[%emt 0:00:12]} 28. h3 {[%emt 0:04:05]} Rxa2 {[%emt 0:00:46]} 29. b3 {[%emt 0:01:41]} Nxf4 {[%emt 0:04:42]} 30. Rxf4 {[%emt 0:00:08]} Rdd2 {[%emt 0:00:09]} 31. Rg4 {[%emt 0:00:41]} g5 {[%emt 0:00:17]} 32. h4 {[%emt 0:02:27]} h5 {[%emt 0:00:11]} 33. Rg3 {[%emt 0:00:10]} Ra1+ {[%emt 0:08:01]} 34. Kh2 {[%emt 0:00:05]} Rdd1 {[%emt 0:00:02]} 35. Rh3 {[%emt 0:01:24]} Rh1+ {[%emt 0:03:56]} 36. Kg3 {[%emt 0:00:02]} Rxh3+ {[%emt 0:00:17]} 37. gxh3 {[%emt 0:02:07]} gxh4+ {[%emt 0:00:50]} 38. Kxh4 {[%emt 0:00:32]} Ra6 {[%emt 0:00:41]} 39. b4 {[%emt 0:00:31]} Kg7 {[%emt 0:07:17]} 40. Kxh5 {[%emt 0:00:10]} Kf7 {[%emt 0:00:04]} 41. h4 {[%emt 0:00:42]} Kg7 {[%emt 0:01:13]} 42. Kg4 {[%emt 0:00:13]} Kg6 {[%emt 0:01:40]} 43. Kf4 {[%emt 0:00:46]} Ra1 {[%emt 0:01:34]} 44. Rxb6 {[%emt 0:01:31]} Rh1 {[%emt 0:00:06]} 45. Kg4 {[%emt 0:00:48]} Rg1+ {[%emt 0:00:34]} 46. Kf4 {[%emt 0:00:26]} Rc1 {[%emt 0:03:31]} 47. Rxb7 {[%emt 0:00:15]} Rc4+ {[%emt 0:00:06]} 48. Kg3 {[%emt 0:00:43]} Kf5 {[%emt 0:01:26]} 49. Rb5+ {[%emt 0:00:32]} Ke4 {[%emt 0:00:14]} 50. h5 {[%emt 0:01:04]} f5 {[%emt 0:01:22]} 51. h6 {[%emt 0:00:54]} Rc3+ {[%emt 0:01:15]} 52. Kf2 {[%emt 0:00:31]} Rc2+ {[%emt 0:01:17]} 53. Ke1 {[%emt 0:00:27]} Rh2 {[%emt 0:00:49]} 54. Rb6 {[%emt 0:00:16]} Kf3 {[%emt 0:00:06]} 55. Rg6 {[%emt 0:00:37]} f4 {[%emt 0:03:11]} 56. b5 {[%emt 0:00:05]} Re2+ {[%emt 0:00:02]} 57. Kd1 {[%emt 0:00:33]} Re8 {[%emt 0:00:04]} 58. h7 {[%emt 0:00:27]} Rh8 {[%emt 0:00:03]} 59. Rg7 {[%emt 0:00:11]} Kf2 {[%emt 0:00:39]} 60. b6 {[%emt 0:00:12]} f3 {[%emt 0:00:27]} 61. b7 {[%emt 0:00:10]} Kf1 {[%emt 0:00:53]} 62. Rg8 {[%emt 0:00:53]} Rxg8 {[%emt 0:00:49]} 63. hxg8=Q {[%emt 0:00:09]} f2 {[%emt 0:00:03]} 64. Qf7 {[%emt 0:00:19]} Kg1 {[%emt 0:00:10]} 65. b8=Q {[%emt 0:00:12]} Kh1 {[%emt 0:00:09]} 66. Qh5+ {[%emt 0:00:24]} Kg2 {[%emt 0:00:13]} 67. Qbh2+ {[%emt 0:00:06]} Kf1 {[%emt 0:00:17]} 68. Q5h3# {[%emt 0:00:05]} 1-0

[Event "Nordic Youth-ch A 2019"]
[Site "Borgarnes"]
[Date "2019.02.17"]
[Round "6.9"]
[White "Wartiovaara, Oliver"]
[Black "Liu, Casper"]
[Result "0-1"]
[ECO "B00"]
[WhiteElo "2021"]
[BlackElo "2126"]
[Annotator "NA"]
[PlyCount "114"]
[EventDate "2019.02.03"]
[EventType "swiss"]
[EventCountry "ISL"]
[SourceTitle "playchess.com"]
[Source "ChessBase"]
[SourceQuality "1"]
[TimeControl "5400+30"]

1. e4 {[%emt 0:00:00]} Nc6 {[%emt 0:00:00]} 2. Nf3 {[%emt 0:00:00]} d6 {[%emt 0:00:00]} 3. d4 {[%emt 0:05:26]} g6 {[%emt 0:00:00]} 4. c3 {[%emt 0:00:30]} Bg7 {[%emt 0:00:28]} 5. Bd3 Nf6 {[%emt 0:00:09]} 6. O-O {[%emt 0:07:25]} O-O 7. h3 {[%emt 0:07:24]} e5 {[%emt 0:00:45]} 8. Re1 {[%emt 0:00:22]} Nd7 {[%emt 0:01:33]} 9. dxe5 $146 {[%emt 0:01:14] B07: Pirc Defence: Miscellaneous Systems} ({Predecessor:} 9. Bf1 h6 10. Na3 Re8 11. Nc2 a6 12. a4 Nf6 13. Bd3 a5 14. Na3 exd4 15. cxd4 Nb4 16. Bb1 c6 17. Nc2 Na6 18. Na3 Nb4 19. Nc2 Na6 20. Na3 {½-½ (20) Borisek,J (2538)-Spraggett,K (2575) Burguillos 2010}) 9... Ncxe5 {[%emt 0:01:59]} 10. Nxe5 {[%emt 0:00:57]} Nxe5 {[%emt 0:00:07]} 11. Bc2 {[%emt 0:02:18]} Re8 {[%emt 0:01:59]} 12. Nd2 {[%emt 0:01:52]} Qh4 {[%emt 0:05:03]} 13. Nf3 {[%emt 0:04:29]} Nxf3+ {[%emt 0:00:14]} 14. Qxf3 {[%emt 0:00:06]} Bd7 {[%emt 0:00:36]} 15. Be3 {[%emt 0:02:30]} Bc6 {[%emt 0:00:48]} 16. Qf4 {[%emt 0:03:32]} Qxf4 {[%emt 0:04:28]} 17. Bxf4 {[%emt 0:00:36]} Re7 {[%emt 0:00:31]} 18. f3 {[%emt 0:02:30]} a5 {[%emt 0:02:00]} 19. a4 {[%emt 0:03:26]} Rae8 {[%emt 0:01:17]} 20. Kf2 {[%emt 0:01:00]} Kf8 {[%emt 0:02:47]} 21. Bg5 {[%emt 0:05:58]} Rd7 {[%emt 0:02:14]} 22. Bb3 {[%emt 0:01:17]} h6 {[%emt 0:00:32]} 23. Be3 {[%emt 0:01:50]} g5 {[%emt 0:02:18]} 24. Bd4 {[%emt 0:01:23]} h5 {[%emt 0:01:15]} 25. g4 {[%emt 0:03:07]} h4 {[%emt 0:01:08]} 26. Be3 {[%emt 0:01:41]} Be5 {[%emt 0:01:16]} 27. Red1 {[%emt 0:04:01]} Bg3+ {[%emt 0:02:04]} 28. Kf1 {[%emt 0:00:10]} f6 {[%emt 0:02:11]} 29. Bf2 {[%emt 0:03:05]} Be5 {[%emt 0:08:05]} 30. Bd5 {[%emt 0:03:15]} Bxd5 {[%emt 0:06:29]} 31. Rxd5 {[%emt 0:00:44]} Ra8 {[%emt 0:03:30]} 32. Rad1 {[%emt 0:01:03]} c6 {[%emt 0:03:54]} 33. R5d3 {[%emt 0:00:20]} b5 {[%emt 0:04:08]} 34. axb5 {[%emt 0:04:24]} cxb5 {[%emt 0:00:01]} 35. Bd4 {[%emt 0:00:08]} Ke7 {[%emt 0:11:22]} 36. Bxe5 {[%emt 0:00:48]} fxe5 {[%emt 0:00:01]} 37. Rd5 {[%emt 0:00:18]} Rb8 {[%emt 0:00:06]} 38. Ke2 {[%emt 0:00:28]} Rb6 {[%emt 0:00:56]} 39. Ra1 {[%emt 0:02:03]} Ra7 {[%emt 0:02:42]} 40. b4 {[%emt 0:03:59]} a4 {[%emt 0:13:22]} 41. Kd2 {[%emt 0:00:21]} Ke6 {[%emt 0:00:38]} 42. Kc2 {[%emt 0:00:14]} Rf7 {[%emt 0:00:41]} 43. Rd3 {[%emt 0:00:07]} Rb8 {[%emt 0:00:27]} 44. Kb2 {[%emt 0:00:43]} Rbf8 {[%emt 0:01:14]} 45. Rf1 {[%emt 0:02:10]} Kd7 {[%emt 0:01:13]} 46. Rf2 {[%emt 0:06:51]} Rf4 $17 {[%emt 0:00:25]} 47. Rf1 {[%emt 0:01:44]} Rxe4 {[%emt 0:00:22]} 48. Rfd1 {[%emt 0:00:35]} Re2+ {[%emt 0:00:05]} 49. Ka3 {[%emt 0:00:37]} Rf6 {[%emt 0:00:10]} 50. Rd5 {[%emt 0:01:02]} Kc6 {[%emt 0:00:14]} 51. R1d3 {[%emt 0:02:14]} Rf2 {[%emt 0:00:16]} 52. c4 {[%emt 0:01:31]} bxc4 {[%emt 0:00:41]} 53. b5+ {[%emt 0:00:10]} Kd7 {[%emt 0:00:31]} 54. Rc3 {[%emt 0:00:48]} R2xf3 {[%emt 0:00:10]} 55. Rxf3 {[%emt 0:00:06]} Rxf3+ {[%emt 0:00:03]} 56. Kxa4 {[%emt 0:00:04]} Rxh3 {[%emt 0:00:13]} 57. b6 {[%emt 0:01:25]} Rb3 {[%emt 0:00:12]} 0-1